bitfinex-derivatives/quotes_SOLF0:USTF0_20250712
["timestamp","ask_amount","ask_price","bid_price","bid_amount"]
[1752292737655,3.5,163.43,163.42,8.11665874]
[1752292738658,6.116,163.43,163.42,8.11665874]
[1752292739051,9.616,163.43,163.42,8.11665874]
[1752292739562,9.616,163.43,163.42,13.25784021]
[1752292741063,3.5,163.44,163.43,3.47]
[1752292741256,3.5,163.44,163.43,4.64665874]
[1752292741456,3.5,163.44,163.43,9.78754418]
[1752292741657,9.6157,163.44,163.43,4.64665874]
[1752292742266,9.6157,163.44,163.43,5.874e-05]
[1752292742562,3.5,163.41,163.37,3.47]
[1752292742764,3.5,163.39,163.37,3.47]
[1752292742962,3.5,163.38,163.37,3.47]
[1752292744257,3.5,163.38,163.37,9.5883]
[1752292749554,3.5,163.39,163.38,9.5879]
[1752292750064,178.8,163.4,163.38,6.1179]
[1752292750265,3.5,163.39,163.38,9.5879]
[1752292751660,3.5,163.39,163.37,9.5881]
[1752292752459,3.5,163.39,163.36,6.1185]
[1752292752658,3.5,163.39,163.36,3.47]
[1752292753065,3.5,163.39,163.37,9.5881]
[1752292753656,7.27726836,163.38,163.3,10.27957014]
[1752292753862,7.27971153,163.35,163.27,10.27957014]
[1752292754060,357.72,163.34,163.31,6.1203]
[1752292754258,3.5,163.33,163.31,6.1203]
[1752292754659,3.5,163.33,163.31,9.6603]
[1752292754863,3.5,163.33,163.32,6.1202]
[1752292755161,3.5,163.33,163.32,9.6602]
[1752292756265,3.5,163.33,163.32,3.54]
[1752292756654,3.5,163.33,163.31,6.1205]
[1752292756860,3.5,163.33,163.31,9.6605]
[1752292757060,3.5,163.33,163.31,6.1205]
[1752292757265,178.8,163.34,163.33,3.54]
[1752292757461,3.46,163.34,163.33,3.54]
[1752292757655,3.46,163.38,163.37,9.6583]
[1752292757862,707.8,163.39,163.37,3.54]
[1752292758063,711.26,163.39,163.37,3.54]
[1752292759064,711.26,163.39,163.37,6.118]
[1752292759362,711.26,163.39,163.38,3.54]
[1752292762170,711.26,163.39,163.38,9.6579]
[1752292763065,711.26,163.39,163.38,3.54]
[1752292763864,711.26,163.39,163.38,9.6579]
[1752292766866,3.46,163.38,163.32,3.77971153]
[1752292767068,3.46,163.36,163.33,3.54]
[1752292767367,178.98,163.35,163.34,9.6594]
[1752292770666,178.98,163.35,163.34,13.43911153]
[1752292770867,179.14,163.37,163.36,6.1183]
[1752292771067,179.14,163.37,163.36,9.6583]
[1752292771268,182.6,163.37,163.36,9.6583]
[1752292772569,179.14,163.37,163.36,9.6583]
[1752292775972,3.46,163.39,163.38,6.1179]
[1752292776172,182.64,163.39,163.38,9.6579]
[1752292782369,3.46,163.4,163.38,3.54]
[1752292783577,179.04,163.41,163.4,6.1172]
[1752292783775,182.5,163.41,163.4,9.6572]
[1752292784276,3.46,163.41,163.4,9.6572]
[1752292787677,182.46,163.42,163.41,9.3868]
[1752292788978,528.72,163.46,163.4,3.77971153]
[1752292789175,3.38,163.44,163.41,3.27]
[1752292791074,3.38,163.44,163.43,6.1158]
[1752292791273,3.38,163.44,163.43,9.3858]
[1752292791678,182.38,163.45,163.44,9.3857]
[1752292791879,182.42685516,163.45,163.44,9.3857]
[1752292792283,3.38,163.44,163.43,9.3859]
[1752292794980,182.42685516,163.45,163.44,9.3857]
[1752292795382,179.04685516,163.45,163.42,3.3124334]
[1752292795678,3.38,163.44,163.42,0.0424334]
[1752292796275,3.38,163.44,163.42,6.1587334]
[1752292796778,3.38,163.44,163.42,9.4287334]
[1752292797787,3.38,163.44,163.43,6.116]
[1752292798384,3.38,163.44,163.43,9.386]
[1752292799381,182.42685516,163.45,163.44,6.1157]
[1752292799582,0.04685516,163.45,163.44,9.3857]
[1752292799882,179.52,163.48,163.45,3.27]
[1752292800087,179.52,163.48,163.42,0.0424334]
[1752292800088,3.38,163.47,163.44,3.27]
[1752292800684,3.38,163.47,163.45,6.1149]
[1752292800987,3.38,163.47,163.45,3.27]
[1752292801288,3.38,163.47,163.46,6.1149]
[1752292801882,3.38,163.47,163.46,9.3849]
[1752292802486,3.38,163.47,163.46,6.1149]
[1752292802687,3.38,163.47,163.46,9.3849]
[1752292803186,182.9,163.48,163.47,9.3845]
[1752292805581,3.38,163.47,163.44,0.04158056]
[1752292805788,3.38,163.47,163.44,3.31158056]
[1752292806179,3.38,163.47,163.44,0.04158056]
[1752292806584,3.38,163.47,163.44,3.31158056]
[1752292806888,3.38,163.47,163.45,6.115]
[1752292807187,3.38,163.47,163.45,9.385]
[1752292808687,3.77971153,163.46,163.4,3.27]
[1752292808986,3.38,163.45,163.41,3.27]
[1752292809387,3.38,163.43,163.37,3.27]
[1752292809588,3.38,163.41,163.37,3.27]
[1752292810188,3.38,163.41,163.36,5.12928046]
[1752292810389,3.38,163.41,163.38,3.27]
[1752292811089,9.4968,163.41,163.38,9.3879]
[1752292811285,3.38,163.41,163.38,9.3879]
[1752292812795,3.38,163.41,163.39,6.1175]
[1752292813192,3.38,163.41,163.38,3.27]
[1752292813395,3.38,163.41,163.39,3.27]
[1752292814096,3.38,163.41,163.39,9.3875]
[1752292814695,3.38,163.41,163.38,9.4178]
[1752292816097,3.38,163.41,163.39,6.1174]
[1752292816296,3.38,163.41,163.39,9.4174]
[1752292816592,3.38,163.41,163.4,6.1172]
[1752292816794,3.38,163.41,163.4,9.4172]
[1752292819600,3.57,163.43,163.42,9.4162]
[1752292825005,3.57,163.44,163.43,9.4158]
[1752292826197,3.57,163.44,163.42,9.4163]
[1752292828807,3.57,163.44,163.43,3.3]
[1752292829909,3.57,163.44,163.43,9.416]
[1752292832312,3.57,163.44,163.42,6.1163]
[1752292833115,3.57,163.44,163.42,6.1164]
[1752292833313,3.57,163.44,163.42,3.3]
[1752292834116,3.57,163.44,163.42,9.4161]
[1752292836319,3.57,163.44,163.43,6.116]
[1752292837021,3.57,163.44,163.43,9.416]
[1752292841417,178.76,163.47,163.45,3.3]
[1752292841820,3.57,163.46,163.45,3.3]
[1752292843223,3.57,163.46,163.45,9.4151]
[1752292855230,3.39,163.5,163.46,3.26]
[1752292855430,181.71,163.49,163.46,3.26]
[1752292857331,181.71,163.49,163.48,9.3742]
[1752292858234,181.71,163.49,163.48,3.26]
[1752292859033,181.71,163.49,163.48,9.3742]
[1752292859230,181.71,163.49,163.48,3.26]
[1752292859739,3.39,163.48,163.46,3.26]
[1752292860130,3.39,163.48,163.47,3.26]
[1752292867834,3.39,163.48,163.47,9.3745]
[1752292869438,181.71,163.49,163.48,9.3742]
[1752292869839,178.32,163.49,163.48,9.3742]
[1752292871340,181.71,163.49,163.48,9.3742]
[1752292872343,178.32,163.49,163.48,9.3742]
[1752292872643,181.37,163.51,163.5,3.26]
[1752292873642,181.37,163.51,163.5,9.3734]
[1752292874442,177.98,163.51,163.5,9.3734]
[1752292876540,14.45,163.53,163.51,6.1128]
[1752292876739,14.45,163.53,163.52,3.34]
[1752292877643,14.45,163.53,163.52,6.1127]
[1752292877840,11.0,163.53,163.52,9.4527]
[1752292878237,14.45,163.53,163.52,3.34]
[1752292879149,11.0,163.53,163.52,3.34]
[1752292879540,14.45,163.53,163.52,3.34]
[1752292880340,11.0,163.53,163.52,9.4527]
[1752292880942,11.0,163.53,163.52,11.86441961]
[1752292882448,11.0,163.53,163.52,11.86442312]
[1752292883349,14.45,163.53,163.52,5.75172312]
[1752292893046,14.45,163.53,163.52,2.41172312]
[1752292893252,14.45,163.53,163.5,8.47656196]
[1752292893253,3.45,163.52,163.49,3.34]
[1752292893451,3.45,163.5,163.49,3.34]
[1752292894548,3.45,163.5,163.48,2.41172312]
[1752292894549,3.45,163.5,163.48,3.34]
[1752292898555,3.45,163.5,163.49,3.34]
[1752292899553,177.88,163.51,163.5,6.1134]
[1752292899751,177.88,163.51,163.5,3.34]
[1752292900258,181.33,163.51,163.5,3.34]
[1752292901156,181.33,163.51,163.5,9.4534]
[1752292902745,11.0,163.53,163.52,6.1127]
[1752292902950,192.33,163.53,163.52,11.86442312]
[1752292904756,192.33,163.53,163.52,9.4527]
[1752292918460,3.53,163.52,163.51,5.13311324]
[1752292918663,3.53,163.52,163.5,5.13311324]
[1752292918961,181.35,163.51,163.5,5.13311324]
[1752292919754,181.35,163.51,163.5,8.52311324]
[1752292922568,181.35,163.51,163.5,5.13311324]
[1752292922965,181.35,163.51,163.5,14.63651324]
[1752292923771,181.35,163.52,163.51,9.5028]
[1752292924566,177.82,163.52,163.51,9.5028]
[1752292924764,177.82,163.52,163.51,11.91496893]
[1752292925564,181.35,163.52,163.51,11.91496893]
[1752292932165,177.82,163.52,163.51,18.76396437]
[1752292932371,14.53,163.53,163.52,6.1127]
[1752292932571,11.0,163.53,163.52,9.5027]
[1752292934870,14.46,163.53,163.52,9.5027]
[1752292935071,14.46,163.53,163.52,11.91486893]
[1752292942479,2.41216893,163.6,163.53,3.42]
[1752292942774,177.72,163.59,163.56,3.42]
[1752292943377,177.76276875,163.59,163.56,3.4646217]
[1752292943980,177.76276875,163.59,163.56,9.5756217]
[1752292944177,177.76276875,163.59,163.57,3.42]
[1752292944480,3.46,163.58,163.56,3.4646217]
[1752292944679,181.18,163.57,163.56,3.4646217]
[1752292945178,181.18,163.57,163.56,9.5758217]
[1752292945879,181.18,163.57,163.56,0.0446217]
[1752292950082,181.18,163.57,163.56,9.5758217]
[1752292951083,177.72,163.57,163.56,9.5758217]
[1752292951779,177.72,163.57,163.56,11.98647797]
[1752292951984,181.18,163.57,163.56,11.98647797]
[1752292959382,181.18,163.57,163.56,0.0446217]
[1752292961983,187.2908,163.57,163.56,0.0446217]
[1752292964090,181.18,163.57,163.56,0.0446217]
[1752292964788,187.2908,163.57,163.56,0.0446217]
[1752292965885,3.54,163.54,163.52,3.35]
[1752292966090,3.54,163.53,163.52,3.35]
[1752292968293,3.54,163.53,163.52,9.4627]
[1752292969393,3.54,163.53,163.52,14.59613043]
[1752292977297,177.64471002,163.54,163.52,8.48343043]
[1752292977604,181.18471002,163.54,163.53,9.4623]
[1752292979798,181.18471002,163.54,163.53,11.87485514]
[1752292981303,181.18471002,163.54,163.53,17.00828557]
[1752292984002,181.18471002,163.54,163.53,11.87485514]
[1752292984900,181.18471002,163.54,163.53,9.4623]
[1752292985099,3.54,163.53,163.52,14.59603043]
[1752292986505,3.54,163.53,163.48,8.48343043]
[1752292986699,2.41255514,163.51,163.48,8.48343043]
[1752292986905,3.54,163.5,163.48,14.59753043]
[1752292987306,3.54,163.5,163.48,8.48343043]
[1752292988008,3.54,163.5,163.48,5.13343043]
[1752292988209,0.04302153,163.51,163.5,9.4634]
[1752292988596,3.58302153,163.51,163.5,9.4634]
[1752292990208,3.58302153,163.51,163.5,3.35]
[1752292990599,3.58302153,163.51,163.49,11.87625514]
[1752292991810,3.58302153,163.51,163.5,9.4634]
[1752292992310,3.58302153,163.51,163.5,3.35]
[1752292992904,3.58302153,163.51,163.49,11.87625514]
[1752292993407,3.58302153,163.51,163.5,3.35]
[1752292994313,3.58302153,163.51,163.5,9.4634]
[1752292994813,3.58302153,163.51,163.5,3.35]
[1752292995312,3.58302153,163.51,163.5,9.4634]
[1752292996713,3.58302153,163.51,163.5,3.35]
[1752292997912,3.58302153,163.51,163.5,9.4634]
[1752293001112,0.04302153,163.51,163.5,9.4634]
[1752293001416,0.04302153,163.51,163.5,14.59867625]
[1752293004115,0.04302153,163.51,163.5,9.4634]
[1752293004816,0.04302153,163.51,163.5,14.60096335]
[1752293007516,0.04302153,163.51,163.5,9.4634]
[1752293010117,0.04302153,163.51,163.5,6.1134]
[1752293010322,3.48302153,163.51,163.5,3.6]
[1752293011210,3.48302153,163.51,163.5,9.7134]
[1752293012221,3.48302153,163.51,163.5,14.8563836]
[1752293012520,2.41255514,163.54,163.49,2.41255514]
[1752293012521,3.44,163.54,163.53,9.7123]
[1752293012719,3.44,163.54,163.53,17.26688621]
[1752293013826,6.1105,163.58,163.54,6.1119]
[1752293014119,3.44,163.55,163.54,9.7119]
[1752293015524,1.06425273,163.62,163.55,3.6]
[1752293015720,3.44,163.61,163.58,3.6]
[1752293015919,3.44,163.61,163.57,6.01255514]
[1752293016116,3.44,163.61,163.58,6.1104]
[1752293016515,3.44,163.61,163.57,6.01255514]
[1752293016719,3.44,163.61,163.58,3.6]
[1752293017720,3.44,163.61,163.59,6.1101]
[1752293019523,3.44,163.61,163.58,9.7103]
[1752293019821,3.44,163.61,163.57,2.41255514]
[1752293020128,3.44,163.64,163.63,9.7086]
[1752293020325,3.44,163.64,163.63,12.12115514]
[1752293020822,3.44,163.64,163.63,9.7086]
[1752293021128,3.44,163.64,163.63,3.6]
[1752293024729,3.52,163.66,163.63,3.6]
[1752293025122,6.1075,163.66,163.63,3.6]
[1752293025329,3.52,163.65,163.63,3.6]
[1752293025730,3.52,163.65,163.59,3.6]
[1752293026230,6.1089,163.63,163.59,3.6]
[1752293026424,358.08,163.62,163.59,3.6]
[1752293026628,354.56,163.62,163.59,7.36397462]
[1752293026826,354.56,163.62,163.6,9.7094]
[1752293027032,354.56,163.62,163.61,3.6]
[1752293027237,358.08,163.62,163.61,3.6]
[1752293028837,3.52,163.61,163.6,3.6]
[1752293032943,9.6293,163.61,163.57,3.76397462]
[1752293033143,3.52,163.6,163.57,3.6]
[1752293033445,3.52,163.58,163.57,3.6]
[1752293038344,358.02,163.59,163.57,3.6]
[1752293043155,3.52,163.58,163.57,3.6]
[1752293044156,3.52,163.58,163.57,9.7108]
[1752293044357,354.5,163.59,163.58,3.6]
[1752293044955,354.5,163.59,163.58,9.7104]
[1752293058166,354.5,163.59,163.56,5.12004743]
[1752293058364,3.48,163.58,163.57,3.37]
[1752293060065,3.48,163.58,163.57,8.49004743]
[1752293060868,3.48,163.58,163.57,14.60084743]
[1752293066469,357.98,163.59,163.58,9.4804]
[1752293067963,357.98,163.59,163.58,3.37]
[1752293068164,357.98,163.59,163.58,8.49004743]
[1752293069564,357.98,163.59,163.58,14.60044743]
[1752293069973,354.5,163.59,163.58,14.60044743]
[1752293070167,357.98,163.59,163.58,14.60044743]
[1752293070575,354.5,163.59,163.58,14.60044743]
[1752293070867,357.98,163.59,163.58,14.60044743]
[1752293077981,357.98,163.59,163.58,9.4804]
[1752293078479,357.98,163.59,163.58,14.62118031]
[1752293081083,357.98,163.59,163.57,5.14078031]
[1752293081278,3.48,163.58,163.57,8.51078031]
[1752293082182,3.48,163.58,163.57,14.62158031]
[1752293084082,3.48,163.58,163.57,8.51078031]
[1752293084287,3.48,163.58,163.56,8.51078031]
[1752293084481,357.64,163.57,163.56,8.51078031]
[1752293085878,363.7508,163.57,163.56,5.14078031]
[1752293086080,363.7508,163.57,163.54,8.47078031]
[1752293086081,3.3,163.56,163.54,8.47078031]
[1752293086384,357.44,163.55,163.54,5.14078031]
[1752293086583,357.44,163.55,163.53,3.33]
[1752293086584,3.3,163.54,163.53,8.47078031]
[1752293087683,3.3,163.54,163.53,9.4423]
[1752293087977,3.3,163.54,163.53,8.47551624]
[1752293091092,3.3,163.54,163.53,3.33]
[1752293091792,3.3,163.54,163.53,9.4423]
[1752293092886,3.3,163.54,163.53,3.33]
[1752293093288,3.3,163.54,163.53,9.4423]
[1752293096792,3.3,163.54,163.52,8.47551624]
[1752293096996,3.3,163.54,163.5,8.47551624]
[1752293097197,3.3,163.52,163.5,3.33]
[1752293097498,357.42,163.51,163.5,3.33]
[1752293098092,357.42,163.51,163.5,9.4432]
[1752293100293,354.12,163.51,163.5,9.4432]
[1752293103996,357.42,163.51,163.5,9.4432]
[1752293107306,3.3,163.5,163.49,0.04291482]
[1752293107810,3.3,163.49,163.45,5.14551624]
[1752293108010,3.77207405,163.5,163.44,3.33]
[1752293108011,3.3,163.47,163.44,8.47551624]
[1752293108210,3.3,163.45,163.44,3.33]
[1752293108513,357.4,163.45,163.44,9.4457]
[1752293109012,3.3,163.44,163.42,8.47551624]
[1752293109311,357.4,163.43,163.42,3.33]
[1752293109510,357.38,163.43,163.42,9.4464]
[1752293110914,3.3,163.42,163.41,9.4467]
[1752293112113,3.3,163.42,163.41,3.33]
[1752293112911,3.3,163.42,163.4,9.447]
[1752293113109,357.42,163.41,163.4,9.447]
[1752293115310,354.12,163.41,163.4,9.447]
[1752293115511,357.47,163.41,163.4,9.447]
[1752293120616,357.47,163.41,163.4,3.33]
[1752293121416,3.35,163.4,163.39,3.27]
[1752293123119,3.35,163.4,163.35,3.77471701]
[1752293123324,354.12,163.41,163.32,6.85604143]
[1752293123325,3.35,163.38,163.37,3.27]
[1752293123524,357.53,163.38,163.37,3.27]
[1752293123921,0.04079664,163.39,163.37,3.27]
[1752293124124,177.08,163.38,163.37,13.16501191]
[1752293124916,180.43,163.38,163.37,3.27]
[1752293125118,177.08,163.38,163.32,3.77671191]
[1752293125422,9.4683,163.37,163.36,3.27]
[1752293125617,3.35,163.36,163.35,3.27]
[1752293125823,357.55,163.36,163.35,3.27]
[1752293126018,354.2,163.36,163.32,6.1202]
[1752293126219,354.2,163.36,163.28,77.6532155]
[1752293126220,3.35,163.35,163.33,3.27]
[1752293126425,357.55,163.34,163.33,3.27]
[1752293126915,354.2,163.34,163.32,3.27]
[1752293127120,3.35,163.33,163.31,6.1205]
[1752293127320,354.2,163.32,163.31,6.1205]
[1752293127724,354.2,163.32,163.31,9.3905]
[1752293128426,357.55,163.32,163.31,9.3905]
[1752293129527,357.55,163.32,163.31,3.27]
[1752293130518,357.55,163.32,163.3,6.1207]
[1752293130825,357.55,163.32,163.31,3.27]
[1752293132728,3.35,163.31,163.3,3.27]
[1752293133128,3.35,163.31,163.27,3.27]
[1752293133324,3.35,163.29,163.27,3.27]
[1752293133521,180.47,163.28,163.27,3.27]
[1752293136527,180.47,163.28,163.26,3.27]
[1752293136528,3.35,163.27,163.26,3.27]
[1752293137330,177.14,163.27,163.26,3.27]
[1752293138230,177.14,163.27,163.26,9.3924]
[1752293138825,180.49,163.27,163.26,3.27]
[1752293139020,3.35,163.26,163.22,3.77924495]
[1752293139228,3.35,163.26,163.23,3.27]
[1752293139430,3.35,163.26,163.24,3.27]
[1752293139625,3.39477528,163.26,163.24,3.27]
[1752293140028,3.39477528,163.26,163.23,3.27]
[1752293140733,3.39477528,163.26,163.24,3.27]
[1752293141427,3.39477528,163.26,163.24,6.1232]
[1752293141628,3.39477528,163.26,163.25,3.27]
[1752293143434,0.04477528,163.26,163.25,9.3928]
[1752293143734,177.16,163.27,163.25,3.27]
[1752293143933,177.16,163.29,163.27,3.27]
[1752293144237,177.16,163.29,163.28,9.3913]
[1752293144739,180.51,163.29,163.28,9.3913]
[1752293145128,177.16,163.29,163.28,9.3913]
[1752293148038,180.51,163.29,163.28,3.27]
[1752293148540,180.51,163.29,163.28,9.3917]
[1752293151242,3.35,163.28,163.27,3.52]
[1752293152242,3.35,163.28,163.22,3.77924495]
[1752293152442,3.35,163.28,163.26,3.52]
[1752293152937,3.35,163.27,163.26,6.1224]
[1752293153139,177.16,163.29,163.26,6.1224]
[1752293153440,3.35,163.28,163.27,3.52]
[1752293153640,3.35,163.28,163.27,9.642]
[1752293153837,3.35,163.29,163.28,3.52]
[1752293154043,177.14,163.29,163.28,3.52]
[1752293154645,177.14,163.29,163.28,9.6417]
[1752293157239,180.49,163.29,163.28,9.6417]
[1752293160441,177.14,163.29,163.28,9.6417]
[1752293160845,528.72,163.34,163.26,3.77924495]
[1752293161050,177.12,163.33,163.29,3.52]
[1752293161249,3.35,163.32,163.29,3.52]
[1752293162152,3.35,163.32,163.31,6.1203]
[1752293162346,3.35,163.32,163.31,9.6403]
[1752293163849,180.47,163.33,163.31,6.1203]
[1752293164054,180.47,163.33,163.32,3.52]
[1752293165057,180.47,163.33,163.32,9.6402]
[1752293165354,177.12,163.33,163.32,9.6402]
[1752293165552,180.47,163.33,163.32,3.52]
[1752293172956,177.12,163.33,163.32,9.6402]
[1752293173151,528.72,163.34,163.32,9.6402]
[1752293173357,532.07,163.34,163.33,3.52]
[1752293173560,709.13,163.34,163.33,3.52]
[1752293175057,180.41,163.34,163.33,3.52]
[1752293176365,177.06,163.34,163.33,9.6398]
[1752293176565,180.63,163.34,163.33,3.52]
[1752293183663,180.63,163.34,163.31,11.23834496]
[1752293183664,177.06,163.34,163.32,3.4]
[1752293183965,3.57,163.33,163.32,3.4]
[1752293185470,3.57,163.33,163.31,3.4]
[1752293185872,9.6905,163.31,163.3,5.11794496]
[1752293186072,9.6905,163.31,163.28,8.51794496]
[1752293186272,3.57,163.29,163.28,8.51794496]
[1752293186467,3.57,163.34,163.28,5.11794496]
[1752293186673,177.02,163.33,163.3,3.7779456]
[1752293186868,180.59,163.33,163.3,3.7779456]
[1752293187074,180.59,163.33,163.31,9.5203]
[1752293187273,180.59,163.33,163.32,3.4]
[1752293187677,180.59,163.33,163.32,9.5202]
[1752293187878,177.02,163.33,163.32,9.5202]
[1752293190476,180.59,163.33,163.32,9.5202]
[1752293190682,180.59,163.33,163.32,3.4]
[1752293190882,177.02,163.33,163.32,5.8178421]
[1752293192379,180.59,163.33,163.32,5.8178421]
[1752293192779,180.59,163.33,163.32,11.9380421]
[1752293195186,177.02,163.33,163.32,11.9380421]
[1752293196778,180.59,163.33,163.32,11.9380421]
[1752293200389,180.59,163.33,163.32,17.08343896]
[1752293200887,180.59,163.33,163.32,10.96323896]
[1752293201086,180.59,163.33,163.32,8.54539686]
[1752293201287,180.59,163.33,163.32,5.8178421]
[1752293202687,3.57,163.32,163.29,10.96323896]
[1752293203091,3.57,163.32,163.3,3.4]
[1752293203784,3.57,163.32,163.3,9.5209]
[1752293204591,3.57,163.32,163.3,11.27641446]
[1752293204790,3.57,163.32,163.31,9.5705]
[1752293206792,3.57,163.32,163.31,3.45]
[1752293206993,3.57,163.32,163.3,14.72631446]
[1752293207191,3.57,163.32,163.3,9.5708]
[1752293208789,3.57,163.32,163.31,9.5705]
[1752293209189,177.02,163.33,163.31,3.45]
[1752293209389,180.46,163.33,163.32,3.45]
[1752293210195,180.46,163.33,163.32,9.5702]
[1752293211196,180.46,163.33,163.32,3.45]
[1752293212297,3.44,163.32,163.31,3.45]
[1752293213894,180.38,163.36,163.31,3.45]
[1752293214094,3.44,163.35,163.31,8.60551446]
[1752293214397,3.44,163.34,163.32,3.45]
[1752293214599,3.44,163.34,163.32,5.8678421]
[1752293214798,3.44,163.34,163.32,3.45]
[1752293215000,3.44,163.34,163.33,3.45]
[1752293216202,3.44,163.34,163.31,11.27591446]
[1752293216501,3.44,163.34,163.3,5.15551446]
[1752293216704,3.44,163.34,163.3,8.60551446]
[1752293216894,3.44,163.34,163.29,8.60551446]
[1752293217101,3.44,163.34,163.29,3.45]
[1752293217401,3.44,163.32,163.3,3.45]
[1752293217602,180.36,163.31,163.3,3.45]
[1752293217803,180.36,163.31,163.3,3.4950521]
[1752293218403,180.36,163.31,163.3,9.6159521]
[1752293220005,180.36,163.31,163.3,3.4950521]
[1752293222108,180.36,163.31,163.3,9.6159521]
[1752293222795,180.36,163.31,163.3,3.4950521]
[1752293224702,176.92,163.31,163.3,3.4950521]
[1752293228608,180.36,163.31,163.3,3.4950521]
[1752293233609,180.36,163.31,163.3,9.6159521]
[1752293233810,176.92,163.31,163.3,9.6159521]
[1752293234113,176.92,163.31,163.3,18.54918841]
[1752293234410,176.92,163.31,163.3,13.39367395]
[1752293234803,176.92,163.31,163.3,12.03373796]
[1752293236510,176.92,163.31,163.3,12.0339322]
[1752293236810,0.04163962,163.33,163.31,6.1202]
[1752293237111,0.04163962,163.33,163.32,3.48]
[1752293238112,0.04163962,163.33,163.32,9.6002]
[1752293238711,0.04163962,163.33,163.32,13.37805218]
[1752293238913,0.04163962,163.33,163.32,18.53014126]
[1752293239112,0.04163962,163.33,163.32,18.52916659]
[1752293240315,3.58,163.39,163.32,3.77785218]
[1752293240510,176.86,163.4,163.36,3.77785218]
[1752293240720,176.86,163.4,163.37,8.63074915]
[1752293240721,3.58,163.39,163.37,8.63074915]
[1752293240911,3.58,163.39,163.38,3.48]
[1752293244619,176.86,163.4,163.38,3.48]
[1752293244917,180.44,163.4,163.38,3.48]
[1752293245120,3.58,163.39,163.37,6.1182]
[1752293245717,3.58,163.39,163.38,3.48]
[1752293248123,3.58,163.39,163.37,3.48]
[1752293248420,3.58,163.39,163.36,3.48]
[1752293248616,3.58,163.39,163.32,8.92860133]
[1752293248617,9.6998,163.33,163.32,5.15074915]
[1752293248819,3.77772867,163.35,163.27,5.15074915]
[1752293249012,176.78,163.34,163.27,5.15074915]
[1752293249321,176.78,163.34,163.28,5.15074915]
[1752293249322,3.58,163.32,163.28,5.15074915]
[1752293249523,3.58,163.32,163.29,3.48]
[1752293249719,176.78,163.33,163.29,3.48]
[1752293249916,180.36,163.33,163.29,3.48]
[1752293251123,180.36,163.33,163.3,6.1207]
[1752293251322,180.36,163.33,163.31,3.48]
[1752293253721,176.78,163.33,163.31,3.48]
[1752293253925,3.58,163.32,163.31,3.48]
[1752293254220,176.78,163.33,163.31,3.48]
[1752293254426,180.36,163.33,163.31,3.48]
[1752293254622,176.78,163.33,163.31,9.6005]
[1752293254925,176.78,163.33,163.31,3.48]
[1752293255323,176.78,163.33,163.32,3.48]